Cogmind - Beta 10.2 @@@ ROGUE MODE // 2021.06.14 @ 13:13:33 Player: Exp. Geonium Core Result: Destroyed by DAS Turret with DAS Cannon Performance ------------- Evolutions (1) 500 Regions Visited (5) 1000 Robots Destroyed (26) 130 Value Destroyed (752) 752 Prototype IDs (23) 460 Alien Tech Used (0) 0 Bonus (39) 39 TOTAL SCORE: 2881 Bonus ------- Aligned with FarCom 300 Friendly Fire -261 Cogmind --------- Core Integrity 0/400 Matter 216/300 Energy 99/100 System Corruption 5% Temperature Cool (0) Movement Core (150) Ox2 Location -9/Exiles Parts ------- > --- POWER (1) -------- (None) > --- PROPULSION (2) --- (None) > --- UTILITY (4) ------ (None) > --- WEAPON (2) ------- Great Maul Great Maul > --- INVENTORY (4) ---- Wheel Shotgun Great Maul Great Maul Peak State ------------ > --- POWER ------------ Light Nuclear Core > --- PROPULSION ------- Compact Wheel > --- UTILITY ---------- Hardened Medium Armor Plating Hardened Medium Armor Plating Improved Light Armor Plating Improved Light Armor Plating > --- WEAPON ----------- Great Maul Great Maul > --- INVENTORY -------- Wheel Deploy-a-Sentry Deploy-a-Sentry Deploy-a-Sentry [Rating: 24] Favorites ----------- Power Light Nuclear Core Power Core Light Nuclear Core Propulsion Compact Wheel Wheel Compact Wheel Utility High-capacity Storage Unit Storage High-capacity Storage Unit Protection Hardened Medium Armor Plating Weapon Great Maul Energy Gun Small Laser Ballistic Gun Shotgun Impact Weapon Great Maul Build | -11 -10 -10 -9 -9 -9 ------- Run | Scr Mat Min Mat Min Exi Slots Evolved 2 | . . . 2 . . Power . | . . . . . . Propulsion . | . . . . . . Utility 2 | . . . 2 . . Weapon . | . . . . . . Parts Attached 39 | 3 1 . 14 3 18 Power 1 | . . . 1 . . Engine . | . . . . . . Core 1 | . . . 1 . . Reactor . | . . . . . . Propulsion 6 | 2 . . 2 1 1 Treads . | . . . . . . Leg . | . . . . . . Wheel 6 | 2 . . 2 1 1 Hover . | . . . . . . Flight . | . . . . . . Utility 17 | . . . 8 1 8 Device . | . . . . . . Storage 4 | . . . 4 . . Processor . | . . . . . . Hackware . | . . . . . . Protection 13 | . . . 4 1 8 Artifact . | . . . . . . Weapon 15 | 1 1 . 3 1 9 Energy Gun 1 | 1 . . . . . Energy Cannon . | . . . . . . Ballistic Gun 7 | . 1 . 3 1 2 Ballistic Cannon . | . . . . . . Launcher . | . . . . . . Special Weapon . | . . . . . . Impact Weapon 7 | . . . . . 7 Slashing Weapon . | . . . . . . Piercing Weapon . | . . . . . . Special Melee Weapon . | . . . . . . Unidentified Prototypes . | . . . . . . Parts Lost 16 | . . . 4 2 10 Power . | . . . . . . Propulsion 5 | . . . 2 1 2 Utility 8 | . . . 2 . 6 Weapon 3 | . . . . 1 2 Highest Loss Streak 5 | . . . 2 2 5 Average Slot Usage (%) 74 | . 49 57 79 87 67 Core 4 | . . . 1 11 3 Wheel 12 | . 28 28 12 10 9 Storage 14 | . . . 21 22 6 Protection 21 | . . . 22 22 27 Energy Gun 2 | . 14 14 3 . . Ballistic Gun 14 | . 7 14 18 21 7 Impact Weapon 4 | . . . . . 12 Naked Turns . | . . . . . . Heaviest Build 88 | 1 3 3 88 81 81 Greatest Support 32 | 32 3 3 32 16 16 Greatest Overweight (x) 8 | . . . 8 8 5 Average Overweight (x) 3 | . . . 3 6 2 Largest Inventory Capacity 20 | 4 4 4 20 20 20 Average Capacity 12 | 4 4 4 15 20 8 Most Carried 20 | 2 2 2 20 18 19 Average Carried 10 | 1 1 2 13 17 6 Final Capacity 20 | 4 4 4 20 20 4 Final Carried 17 | 2 2 2 17 16 4 Class Distribution -------------------- 52% | Hauler-Mutant 47% | Mutant Dominant Class ---------------- Mutant | -10/Materials Mutant | -10/Mines Hauler-Mutant | -9/Materials Hauler-Mutant | -9/Mines Mutant | -9/Exiles Resources | -11 -10 -10 -9 -9 -9 ----------- Run | Scr Mat Min Mat Min Exi Matter Collected 812 | 89 41 . 529 133 20 Remotely . | . . . . . . Salvage Created 890 | . 41 . 728 93 28 Parts 60 | . 7 . 47 6 . Haulers Intercepted . | . . . . . . Recyclers Shooed 2 | . 1 . 1 . . Parts Field Recycled . | . . . . . . Retrieved Matter . | . . . . . . Parts Self-Destructed . | . . . . . . Prevented . | . . . . . . Kills | -11 -10 -10 -9 -9 -9 ------- Run | Scr Mat Min Mat Min Exi Combat Hostiles Destroyed 23 | . 3 . 14 3 3 Melee 3 | . . . . . 3 Guns 20 | . 3 . 14 3 . Classes Destroyed 9 | . 1 . 6 1 1 Tunneler 2 | . . . 1 1 . Recycler 1 | . . . 1 . . Operator 1 | . . . 1 . . Watcher 1 | . . . 1 . . Swarmer 3 | . 3 . . . . Grunt 13 | . . . 11 2 . Sentry 3 | . . . 3 . . Demolisher 1 | . . . . 1 . Assembled 2 | . . . . . 2 Best Kill Streak 4 | . 3 . 4 3 1 Combat Bots Only 3 | . 3 . 3 2 1 Max Kills in Single Turn 1 | . 1 . 1 1 1 Gunslinging . | . . . . . . Exploded . | . . . . . . Melee 1 | . . . . . 1 Uniques/NPCs Destroyed 1 | . . . . . 1 8R-AWN (-9/Exiles) Combat | -11 -10 -10 -9 -9 -9 -------- Run | Scr Mat Min Mat Min Exi Damage Taken 3071 | . 22 . 893 519 1637 Core 417 | . 6 . 72 65 274 Absorbed by Shields . | . . . . . . Core Remaining (%) 98 | 100 . 97 . . . Volleys Fired 94 | 2 4 . 71 16 1 Largest 2 | 1 2 . 2 2 2 Hottest 60 | 40 60 . 60 46 46 Shots Fired 184 | 2 8 . 141 31 2 Gun 184 | 2 8 . 141 31 2 Cannon . | . . . . . . Launcher . | . . . . . . Special . | . . . . . . Kinetic 152 | . 4 . 115 31 2 Thermal 32 | 2 4 . 26 . . Explosive . | . . . . . . Electromagnetic . | . . . . . . Robot Hit Streak 11 | 2 7 . 11 8 1 Robot Miss Streak 3 | . . . 2 3 1 Penetration Max . | . . . . . . Secondary Targets 1 | . . . . 1 . Max Gunslinging Chain 1 | . . . . 1 . Shots Hit Robots 146 | 2 5 . 97 21 21 Core Hits 61 | 1 4 . 39 9 8 Critical Hits . | . . . . . . Critical Kills . | . . . . . . Critical Parts Destroyed . | . . . . . . Melee Attacks 28 | . . . . . 28 Impact 28 | . . . . . 28 Slashing . | . . . . . . Piercing . | . . . . . . Sneak Attacks 1 | . . . . . 1 Combat Hostiles . | . . . . . . Follow-up Attacks 3 | . . . . . 3 Damage Inflicted 2126 | 20 54 . 1141 279 632 Guns 1511 | 20 54 . 1141 279 17 Cannons . | . . . . . . Explosions . | . . . . . . Melee 604 | . . . . . 604 Ramming 11 | . . . . . 11 Kinetic 1203 | . 11 . 896 279 17 Thermal 308 | 20 43 . 245 . . Explosive . | . . . . . . Electromagnetic . | . . . . . . Impact 604 | . . . . . 604 Slashing . | . . . . . . Piercing . | . . . . . . Highest Corruption 5 | . . . 2 2 5 Average Corruption 2 | . . . 2 2 3 Corruption Purged . | . . . . . . Effects 29 | . . . 10 4 15 Message Errors 7 | . . . 1 . 6 Heat Flow Errors 5 | . . . 1 2 2 Energy Discharges 6 | . . . 2 . 4 Data Loss (minor) 4 | . . . . 1 3 Targeting Errors 6 | . . . 5 1 . Weapon Failures 1 | . . . 1 . . Overload Shots . | . . . . . . Overflow Damage 53 | . . . . . 53 Projectiles . | . . . . . . Explosions . | . . . . . . Melee 53 | . . . . . 53 Knockbacks 1 | . . . . . 1 Impact 1 | . . . . . 1 Kinetic . | . . . . . . Secondary . | . . . . . . Self-Inflicted Damage 2 | . . . . . 2 Shots . | . . . . . . Rammed 8 | . . . . . 8 Targets Rammed 8 | . . . . . 8 Kicked . | . . . . . . Crushed . | . . . . . . Highest Temperature 272 | . 15 . 170 272 199 Average Temperature 45 | . 10 . 32 72 103 Received Heat Transfer 516 | . . . 387 129 . Siege Activations . | . . . . . . Robots Corrupted . | . . . . . . Combat Hostiles . | . . . . . . Parts Fried . | . . . . . . Impact Corruptions 4 | . . . . . 4 Robots Melted . | . . . . . . Combat Hostiles . | . . . . . . Parts Melted 1 | . . . 1 . . Heat Transferred 700 | 50 100 . 550 . . Parts Sabotaged . | . . . . . . Parts Stolen . | . . . . . . Parts Stripped . | . . . . . . Power Chain Reactions . | . . . . . . Missiles Intercepted . | . . . . . . Alert | -11 -10 -10 -9 -9 -9 ------- Run | Scr Mat Min Mat Min Exi Peak Influence 221 | . 198 76 221 98 . Initial 76 | . . 76 29 33 . Average 77 | . 78 76 84 68 . Maximum Alert Level 1 | . . . 1 . . Low Security (%) 95 | 100 100 100 91 100 . Level 1 4 | . . . 8 . . Level 2 . | . . . . . . Level 3 . | . . . . . . Level 4 . | . . . . . . Level 5 . | . . . . . . High Security . | . . . . . . Max Security . | . . . . . . Squads Dispatched 2 | . . . 2 . . Investigation . | . . . . . . Extermination . | . . . . . . Reinforcement 2 | . . . 2 . . Assault . | . . . . . . Garrison . | . . . . . . Intercept . | . . . . . . Construction Impeded . | . . . . . . Haulers Reinforced . | . . . . . . Stealth | -11 -10 -10 -9 -9 -9 --------- Run | Scr Mat Min Mat Min Exi Distress Signals 3 | . 1 . 2 . . Communications Jammed . | . . . . . . Distress Signals . | . . . . . . Times Spotted 60 | . 9 . 30 7 14 Peak Tracking Total 9 | . 4 . 6 4 9 Tactical Retreats 5 | . 1 . 1 . 3 Traps | -11 -10 -10 -9 -9 -9 ------- Run | Scr Mat Min Mat Min Exi Traps Triggered 1 | . . . 1 . . Indirectly . | . . . . . . Trap Hack Attempts . | . . . . . . Triggered . | . . . . . . Disarmed . | . . . . . . Reprogrammed . | . . . . . . Reused . | . . . . . . Traps Extracted . | . . . . . . Installed . | . . . . . . Triggered . | . . . . . . Machines | -11 -10 -10 -9 -9 -9 ---------- Run | Scr Mat Min Mat Min Exi Machines Disabled 3 | . . . . . 3 Max in Single Turn 1 | . . . . . 1 Machines Sabotaged . | . . . . . . Garrisons Compromised . | . . . . . . Overloaded Fab Kills . | . . . . . . Fab Network Shutdowns . | . . . . . . Hacking | -11 -10 -10 -9 -9 -9 --------- Run | Scr Mat Min Mat Min Exi Machines Accessed 4 | . 2 . 1 . 1 Terminals 3 | . 2 . 1 . . Fabricators . | . . . . . . Repair Stations . | . . . . . . Recycling Units . | . . . . . . Scanalyzers . | . . . . . . Garrison Access . | . . . . . . Total Hacks 8 | . 6 . 1 . 1 Successful 6 | . 4 . 1 . 1 Failed 2 | . 2 . . . . Catastrophic . | . . . . . . Database Lockouts . | . . . . . . Manual 5 | . 4 . . . 1 Terminals 7 | . 6 . 1 . . Fabricators . | . . . . . . Repair Stations . | . . . . . . Recycling Units . | . . . . . . Scanalyzers . | . . . . . . Garrison Access . | . . . . . . Terminal Hacks 4 | . 2 . 1 . 1 Part Schematic 1 | . 1 . . . . Branch Access Points 2 | . 1 . 1 . . EX-Prototype ID Bank 1 | . . . . . 1 Fabricator Hacks . | . . . . . . Repair Station Hacks . | . . . . . . Recycling Unit Hacks . | . . . . . . Scanalyzer . | . . . . . . Garrison Access Hacks . | . . . . . . Unauthorized Hacks 2 | . 2 . . . . Terminals 2 | . 2 . . . . Assimilate 2 | . 2 . . . . Fabricators . | . . . . . . Repair Stations . | . . . . . . Recycling Units . | . . . . . . Scanalyzers . | . . . . . . Garrison Access . | . . . . . . Data Cores Recovered . | . . . . . . Used . | . . . . . . Hacking Detections 3 | . 2 . 1 . . Full Trace Events . | . . . . . . Feedback Events . | . . . . . . Feedback Blocked . | . . . . . . Robot Schematics Acquired . | . . . . . . Robots Built . | . . . . . . Matter . | . . . . . . Time . | . . . . . . Total Robot Build Rating . | . . . . . . Part Schematics Acquired 1 | . 1 . . . . Parts Built . | . . . . . . Matter . | . . . . . . Time . | . . . . . . Total Part Build Rating . | . . . . . . Parts Repaired . | . . . . . . Time . | . . . . . . Parts Recycled . | . . . . . . Recycled Matter . | . . . . . . Retrieved Matter . | . . . . . . Retrieved Components . | . . . . . . Parts Scanalyzed . | . . . . . . Part Schematics Acquired . | . . . . . . Parts Damaged . | . . . . . . Bothacking | -11 -10 -10 -9 -9 -9 ------------ Run | Scr Mat Min Mat Min Exi Used RIF Installer . | . . . . . . Robots Hacked . | . . . . . . Non-combat . | . . . . . . Combat . | . . . . . . Robot Hacks Applied . | . . . . . . Relay Couplers Released . | . . . . . . Robots Rewired . | . . . . . . Allies Hacked . | . . . . . . Hacks Repelled . | . . . . . . Allies | -11 -10 -10 -9 -9 -9 -------- Run | Scr Mat Min Mat Min Exi Total Allies 1 | . 1 . . . . Largest Group 1 | . 1 . . . . Highest-Rated Group 10 | . 10 . . . . Highest-Rated Ally 10 | . 10 . . . . Total Orders . | . . . . . . Ally Attacks 21 | . . . . . 21 Total Damage 1038 | . . . . . 1038 Kills 5 | . . . . . 5 Allies Corrupted 1 | . . . . . 1 Allies Melted . | . . . . . . Turrets Deployed 3 | . . . . . 3 Intel | -11 -10 -10 -9 -9 -9 ------- Run | Scr Mat Min Mat Min Exi Robot Analysis Total . | . . . . . . Derelict Logs Recovered 3 | . . 2 . 1 . Drone Launches . | . . . . . . Drone Recoveries . | . . . . . . Exploration | -11 -10 -10 -9 -9 -9 ------------- Run | Scr Mat Min Mat Min Exi Turns Passed 2550 | 29 231 11 902 503 874 Spaces Moved 1525 | 30 125 21 470 260 619 Core 215 | 23 125 21 11 . 35 Treads . | . . . . . . Legs . | . . . . . . Wheels 1310 | 7 . . 459 260 584 Hover . | . . . . . . Flight . | . . . . . . Fastest Speed 50 | 50 50 50 50 150 80 Average Speed 120 | 61 50 50 133 155 114 Slowest Speed 250 | 100 50 50 250 160 150 Overloaded Moves . | . . . . . . Propulsion Burnouts . | . . . . . . Robots Hopped . | . . . . . . Cave-ins Triggered . | . . . . . . Exploration Rate (%) 32 | 4 28 10 38 56 59 Regions Visited 5 Branch Regions 3 Pre-discovered Areas 3 | . . 2 . 1 . Known Exits Taken 2 | . 1 . 1 . . Unknown Exits Taken 3 | 1 . 1 . 1 . Scrap Searched 2 | . . . . 2 . Spaces Dug . | . . . . . . Terrain Destroyed . | . . . . . . Melee . | . . . . . . Projectile . | . . . . . . AOE . | . . . . . . Terrain Rammed . | . . . . . . Walls Destroyed . | . . . . . . Machines Disabled . | . . . . . . Actions | -11 -10 -10 -9 -9 -9 --------- Run | Scr Mat Min Mat Min Exi Total 2001 | 36 284 20 609 329 723 Wait 251 | . 154 . 30 49 18 Move 1520 | 29 124 20 469 259 619 Hop . | . . . . . . Pick Up 42 | 2 1 . 19 2 18 Fast Attach 15 | 3 . . 6 . 6 Attach 15 | . 1 . 4 3 7 Detach . | . . . . . . Swap 9 | . . . 4 . 5 Drop 23 | . . . 6 . 17 Fire 94 | 2 4 . 71 16 1 Melee 24 | . . . . . 24 Ram 8 | . . . . . 8 Kick . | . . . . . . Crush . | . . . . . . Escape Stasis . | . . . . . . Rewire . | . . . . . . Trap . | . . . . . . Miscellaneous . | . . . . . . Route ------- -11/Scrapyard -10/Materials (discovered 2 exits: *Min x2) -10/Mines -9/Materials (discovered 3 exits: *Min / Sto x2) -9/Mines (discovered 3 exits: [*Mat x2] / *Exi) -9/Exiles History --------- Turn | Location | Event 11 | -11/Scrapyard | Discovered new exit (range 16) 30 | -11/Scrapyard | Entered Materials 119 | -10/Materials | Identified exit to Mines 261 | -10/Materials | Entered Mines 265 | -10/Mines | Learned location of Storage (-9) 266 | -10/Mines | Learned location of Zion (-6) 269 | -10/Mines | Discovered new exit (range 6) 272 | -10/Mines | Entered Materials 272 | -9/Materials | Evolved 2 slots: Utility x2 306 | -9/Materials | Build established: Mutant 722 | -9/Materials | Identified exit to Mines 722 | -9/Materials | Identified exit to Storage 892 | -9/Materials | Build established: Hauler-Mutant 1174 | -9/Materials | Entered Mines 1206 | -9/Mines | Met a Derelict bent on vengeance 1231 | -9/Mines | Discovered new exit (range 16) 1342 | -9/Mines | Discovered new exit (range 8) 1396 | -9/Mines | Assembled infested the area 1671 | -9/Mines | Deemed a non-threat by the Exiles lab entrance 1671 | -9/Mines | Discovered new exit (range 5) 1677 | -9/Mines | Entered Exiles 1715 | -9/Exiles | Met 8R-AWN 1739 | -9/Exiles | Met EX-HEX 1784 | -9/Exiles | Met EX-BIN 1865 | -9/Exiles | Aligned with FarCom system 1866 | -9/Exiles | Given EX-Vault access code 1902 | -9/Exiles | Opened EX-Vault 1914 | -9/Exiles | Found Deploy-a-Sentry 1917 | -9/Exiles | Found Deploy-a-Sentry 1919 | -9/Exiles | Found Deploy-a-Sentry 1986 | -9/Exiles | Warned to stay clear of 0b10 Research branches 2016 | -9/Exiles | Met EX-DEC 2023 | -9/Exiles | DAS Turret deployed 2079 | -9/Exiles | DAS Turret deployed 2080 | -9/Exiles | DAS Turret deployed 2089 | -9/Exiles | Attacked by the Exiles 2226 | -9/Exiles | Core integrity fell below 50% 2240 | -9/Exiles | Build established: Mutant 2258 | -9/Exiles | Destroyed 8R-AWN 2365 | -9/Exiles | Lost 5 parts (3u2w) 2547 | -9/Exiles | Core integrity fell below 20% 2551 | -9/Exiles | Destroyed by DAS Turret with DAS Cannon Last Messages --------------- 02388_ Acquired Broken Great Maul. 02390_ EPGHDIGIFMISGGO6K9DXXLQ3HQ 02397_ Acquired Great Maul. 02416_ 0FEQ:3N>HHE06VOM6FEGLLF 6J0KSWL 9&O>L8QV 02416_ Acquired Lgt. Armor Plating. 02434_ NVUQL1A 72M2WQJNEFJPX NP 02450_ System corrupted: Heat flow error (+216). 02471_ 5QUD>M L1GGPYSGQHWOBTRE 02476_ Acquired 4 matter. 02479_ Slammed into as-28388. 02485_ Hrd. Medium Armor Plating destroyed. 02488_ Wheel destroyed. 02490_ Lgt. Armor Plating severed. 02492_ Destroyed Asb. Blade. 02492_ as-28388 system corrupted by crushing effect. 02495_ as-28388 destroyed. 02501_ Acquired 11 matter. 02504_ Acquired Lgt. Armor Plating. 02505_ Dropped Lgt. Armor Plating. 02549_ Machine disabled. Map ----- +----------------------------------------------------+ | ???????????" ???????????#" """ #???????? | | ??????????? "??????????#" """""""""#???????? | | ???????????" "?????????##" ###########???????? | | ???????????# #????????##"" #?????????????????? | | #####????### ###?######"" #?????????????????? | | """#####X# #"###""""""" ##????????????????? | | """""" " "" ################?? | | "" """ " ##"##"""""""""##? | | " " " """ """"## | | " " # | | # """# | | ?# " "# | | ??# "# | | ???#" " | | ???#""" """""" | | ??##" ######""" | | ??#"" ""##????#####""" | | ?##""" """##?????????##""" | | ?#""" "##???????????#"""" | | ?#""" % ""#???????????##"" | | ?#" ##?####???####"""" | | ?#""" ##aaa####""" | | ?#"" """ | | ?##"" | | ??#"""" | | ??## @ " | | ???#" " "" """ % | | ???#"""" ""## ##""" " " ""#" | | ???#"" ""#### ######""" """##" " "" | | ???#" """"##??# #????###""""######### | | ???#""" """#???# #??????######???????? | | ???## ""##???! ???????????????????? | | ????#"" """#????#" ???????????????????? | | ????##""" ##????#" ??????????????????? | | ?????##"""" ##?????#!!""!??????????????????? | | ??????### #???????######?????????????????? | | ????????##### ##??????????????????????????????? | | ?????????????# #???????????????????????????????? | | ?????????????? #???????????????????????????????? | | ?????????????? #???????????????????????????????? | | ?????????????? ?????????????????????????????????? | | ?????????????????????????????????????????????????? | | ?????????????????????????????????????????????????? | | ?????????????????????????????????????????????????? | | ?????????????????????????????????????????????????? | | ?????????????????????????????????????????????????? | | ?????????????????????????????????????????????????? | | ?????????????????????????????????????????????????? | | ?????????????????????????????????????????????????? | | ?????????????????????????????????????????????????? | +----------------------------------------------------+ Best States ------------- Heat Dissipation 28 Energy Generation 14 Energy Capacity 160 Matter Stores 300 Matter Capacity 300 Sight Range 16 Terrain Scan Density 10 Armor Coverage 750 Evasion (%) 50 Item Schematics ----------------- Hcp. Storage Unit | -10/Materials | Hacked Robot Schematics ------------------ None Fabricated ------------ Nothing Alien Tech Used ----------------- None Achievements -------------- None Challenges ------------ None Game ------ Seed ProcessingForceStorm Manual? 0 Play Time 00:21:43 Cumulative 115.6 hours Start 2021.06.14 @ 12:49:37 End 2021.06.14 @ 13:13:33 Sessions 1 Manual Loads 0 Difficulty Rogue Special Mode None Game No. 170 Rogue 170 Adventurer 0 Explorer 0 Win Type - Total 4 Types 3/0/0/1/0/0/0/0/0 Lore% 48 Gallery% 70 Achievement% 57 Wizard Run 0 Options --------- ASCII 0 Keyboard 0 Movement Mouse Keybinds 0 Fullscreen 1 Font 18/Terminus Map View 76x50 Tactical HUD 1 Map Filters NONE Filters NONE Steam 1 RUN: 220db95a-cd3b-432f-b52f-b1e469818bca